bitfinex-derivatives/quotes_BNBF0:USTF0_20250316
["timestamp","ask_amount","ask_price","bid_price","bid_amount"]
[1742134594662,0.91520225,598.44,596.7,4.11616019]
[1742134594860,0.91520225,598.44,596.72,0.33516557]
[1742134595064,0.91520225,598.44,596.73,4.11616019]
[1742134595263,0.91520225,598.44,596.74,4.45131452]
[1742134595459,0.91520225,598.44,596.75,3.80859923]
[1742134595664,0.91520225,598.44,596.76,4.14374233]
[1742134595865,0.91520225,598.44,596.77,5.64658954]
[1742134596060,0.91520225,598.44,596.77,1.53042935]
[1742134596260,0.91520225,598.44,596.78,4.45125915]
[1742134596465,0.91520225,598.44,596.79,4.45125353]
[1742134596660,0.91520225,598.44,596.8,5.64653978]
[1742134596868,0.91520225,598.44,596.81,5.16737717]
[1742134597066,0.91520225,598.44,596.82,4.45123669]
[1742134597267,0.91520225,598.44,596.83,4.14372516]
[1742134597568,0.91520225,598.44,596.84,4.45118846]
[1742134597770,0.91520225,598.44,596.85,4.45118284]
[1742134597967,0.91520225,598.44,596.86,4.11609028]
[1742134598170,0.91520225,598.44,596.87,4.11609028]
[1742134598369,0.91520225,598.44,596.88,4.11609028]
[1742134598568,0.91520225,598.44,596.89,4.45116039]
[1742134598767,0.91520225,598.44,596.9,4.45115477]
[1742134598967,0.91520225,598.44,596.91,4.14368025]
[1742134599163,0.91520225,598.44,596.92,4.45114355]
[1742134599362,0.91520225,598.44,596.93,4.45113794]
[1742134599564,0.91520225,598.44,596.94,4.45113232]
[1742134599867,0.91520225,598.44,596.95,4.45112671]
[1742134600075,0.91520225,598.44,596.96,4.4511211]
[1742134600265,0.91520225,598.44,596.97,4.45111549]
[1742134600478,0.91520225,598.44,596.98,4.45110987]
[1742134600669,0.91520225,598.44,596.99,4.45110426]
[1742134600966,0.91520225,598.44,597.0,5.95336606]
[1742134601164,0.91520225,598.44,597.01,4.83209952]
[1742134601366,0.91520225,598.44,597.02,4.1160742]
[1742134601566,0.91520225,598.44,597.03,4.1160742]
[1742134601768,0.91520225,598.44,597.0,0.642]
[1742134601769,0.91520225,598.44,597.04,5.31136606]
[1742134601962,0.33420225,598.44,597.05,4.1160742]
[1742134602163,0.33420225,598.44,597.06,4.11564963]
[1742134602465,0.33420225,598.44,597.07,5.31094149]
[1742134602668,0.33420225,598.44,597.08,4.11564963]
[1742134602869,0.33420225,598.44,597.09,4.11564963]
[1742134603070,0.33420225,598.44,597.1,5.31094149]
[1742134603265,0.91520225,598.44,597.11,4.11564963]
[1742134603472,0.91520225,598.44,597.12,4.11564963]
[1742134603671,0.91520225,598.44,597.13,2.42244245]
[1742134603867,0.91520225,598.44,597.14,2.42244245]
[1742134604072,0.91520225,598.44,597.15,2.42244245]
[1742134604266,0.91520225,598.44,597.16,2.42244245]
[1742134604470,0.91520225,598.44,597.17,2.42244245]
[1742134604667,0.91520225,598.44,597.18,1.77211338]
[1742134604869,0.91520225,598.44,597.19,0.7138589]
[1742134605068,0.91520225,598.44,597.2,0.71393179]
[1742134605272,0.91520225,598.44,597.21,0.71393179]
[1742134605466,0.91520225,598.44,597.22,0.71393179]
[1742134605666,0.91520225,598.44,597.0,0.642]
[1742134605869,0.91520225,598.44,597.01,4.11669914]
[1742134606072,0.91520225,598.44,597.02,5.30900717]
[1742134606270,0.91520225,598.44,597.03,4.11669914]
[1742134606472,0.91520225,598.44,597.04,4.11669914]
[1742134606667,0.91520225,598.44,597.05,5.30900717]
[1742134606868,0.91520225,598.44,597.06,4.11669914]
[1742134607073,0.91520225,598.44,597.07,2.42312613]
[1742134607269,0.91520225,598.44,597.08,3.61543416]
[1742134607570,0.91520225,598.44,597.09,2.42312613]
[1742134607774,0.91520225,598.44,597.1,1.77256492]
[1742134608075,0.91520225,598.44,597.11,1.77256492]
[1742134608376,0.91520225,598.44,597.12,2.42311775]
[1742134608572,0.91520225,598.44,597.13,2.42311775]
[1742134608779,0.91520225,598.44,597.14,2.42311775]
[1742134609080,0.91520225,598.44,597.15,2.42311775]
[1742134609272,0.91520225,598.44,597.14,1.19234909]
[1742134609273,0.91520225,598.44,597.16,4.11666192]
[1742134609476,0.91520225,598.44,597.17,2.42311775]
[1742134609677,0.91520225,598.44,597.18,2.1155871]
[1742134609877,0.91520225,598.44,597.19,1.36601378]
[1742134610074,0.91520225,598.44,597.2,2.42316942]
[1742134610279,0.91520225,598.44,597.21,2.42315459]
[1742134610478,0.91520225,598.44,597.22,0.71409844]
[1742134610678,0.91520225,598.44,597.23,0.71409844]
[1742134610883,0.91520225,598.44,597.24,0.71409844]
[1742134611178,0.91520225,598.44,597.25,0.40656779]
[1742134611385,0.91520225,598.44,597.0,0.642]
[1742134611585,0.91520225,598.44,597.01,4.11800979]
[1742134611784,0.91520225,598.44,597.02,4.11800979]
[1742134611984,0.91520225,598.44,597.03,4.11780609]
[1742134612191,0.91520225,598.44,597.04,4.11780609]
[1742134612381,0.91520225,598.44,597.05,4.11780609]
[1742134612580,0.91520225,598.44,597.06,4.11780609]
[1742134612786,0.91520225,598.44,597.07,5.31043303]
[1742134612986,0.91520225,598.44,597.08,4.11780609]
[1742134613187,0.91520225,598.44,597.09,4.11776379]
[1742134613385,0.91520225,598.44,597.1,4.11776379]
[1742134613586,0.91520225,598.44,597.11,4.11776379]
[1742134613786,0.91520225,598.44,597.12,4.11776379]
[1742134613989,0.91520225,598.44,597.13,4.11919866]
[1742134614186,0.91520225,598.44,597.14,4.11919866]
[1742134614485,0.91520225,598.44,597.15,4.11919866]
[1742134614783,0.91520225,598.44,597.16,5.00435546]
[1742134614987,0.91520225,598.44,597.17,3.81172852]
[1742134615183,0.91520225,598.44,597.18,3.81172852]
[1742134615388,0.91520225,598.44,597.17,1.19262694]
[1742134615389,0.91520225,598.44,597.19,3.81172852]
[1742134615590,0.91520225,598.44,597.2,3.81172852]
[1742134615889,0.91520225,598.44,597.21,3.81172852]
[1742134616091,0.91520225,598.44,597.22,3.81304628]
[1742134616292,0.91520225,598.44,597.23,2.11699466]
[1742134616593,0.91520225,598.44,597.24,2.11699466]
[1742134616790,0.91520225,598.44,597.25,3.81434331]
[1742134616991,0.91520225,598.44,597.26,5.00697025]
[1742134617294,0.91520225,598.44,597.27,4.12176599]
[1742134617590,0.91520225,598.44,597.28,4.12176599]
[1742134617789,0.91520225,598.44,597.29,3.81434331]
[1742134617986,0.91520225,598.44,597.27,1.19262694]
[1742134617987,0.91520225,598.44,597.3,3.81434331]
[1742134618191,0.91520225,598.44,597.31,3.81434331]
[1742134618487,0.91520225,598.44,597.32,3.81434331]
[1742134618791,0.91520225,598.44,597.33,2.11767869]
[1742134618986,0.91520225,598.44,597.34,3.31030563]
[1742134619193,0.91520225,598.44,597.35,1.46601888]
[1742134619392,0.91520225,598.44,597.36,1.46601888]
[1742134619590,0.91520225,598.44,597.37,1.46601888]
[1742134619790,0.91520225,598.44,597.36,1.19262694]
[1742134619990,0.91520225,598.44,597.37,1.46918949]
[1742134620287,0.91520225,598.44,597.08,1.19262694]
[1742134620492,0.91520225,598.44,597.09,3.82019447]
[1742134620690,0.91520225,598.44,597.1,5.32030072]
[1742134620885,0.91520225,598.44,597.11,4.12767378]
[1742134621193,0.91520225,598.44,597.12,3.72004347]
[1742134621392,0.91520225,598.44,597.13,4.1277621]
[1742134621593,0.91520225,598.44,597.14,4.1277621]
[1742134621794,0.91520225,598.44,597.15,4.1277621]
[1742134621985,0.91520225,598.44,597.16,4.1277621]
[1742134622294,0.91520225,598.44,597.07,1.376]
[1742134622295,0.91520225,598.44,597.17,5.32038904]
[1742134622489,0.91520225,598.44,597.18,0.40771863]
[1742134622690,0.91520225,598.44,597.19,1.0618883]
[1742134622996,0.91520225,598.44,597.18,0.40771863]
[1742134622997,0.91520225,598.44,597.2,2.66223387]
[1742134623193,0.91520225,598.44,597.21,1.46968187]
[1742134623387,0.91520225,598.44,597.22,1.46972902]
[1742134623592,0.91520225,598.44,597.23,1.46972902]
[1742134623789,0.91520225,598.44,597.07,1.376]
[1742134623790,0.91520225,598.44,597.24,1.46972902]
[1742134623989,0.91520225,598.44,597.25,1.46982896]
[1742134624197,0.91520225,598.44,597.26,0.40784072]
[1742134624396,0.91520225,598.44,597.07,1.376]
[1742134624696,0.91520225,598.44,597.08,3.8221007]
[1742134624898,0.91520225,598.44,597.09,5.01848226]
[1742134625099,0.91520225,598.44,597.1,3.8221007]
[1742134625292,0.91520225,598.44,597.11,3.8221007]
[1742134625493,0.91520225,598.44,597.09,1.19638156]
[1742134625494,0.91520225,598.44,597.12,3.8221007]
[1742134625797,0.91520225,598.44,597.13,3.8221007]
[1742134625996,0.91520225,598.44,597.14,3.8221007]
[1742134626196,0.91520225,598.44,597.15,3.8221007]
[1742134626399,0.91520225,598.44,597.16,3.8221007]
[1742134626596,0.91520225,598.44,597.17,2.12272396]
[1742134626795,0.91520225,598.44,597.18,1.47000809]
[1742134626995,0.91520225,598.44,597.19,1.47000809]
[1742134627195,0.91520225,598.44,597.2,1.47008174]
[1742134627395,0.91520225,598.44,597.21,1.47008174]
[1742134627597,0.91520225,598.44,597.22,1.47008174]
[1742134627799,0.91520225,598.44,597.23,1.47008174]
[1742134628001,0.91520225,598.44,597.24,1.47008174]
[1742134628203,0.91520225,598.44,597.25,0.40797128]
[1742134628400,0.91520225,598.44,597.07,1.376]
[1742134628597,0.91520225,598.44,597.08,3.82307785]
[1742134628803,0.91520225,598.44,597.09,3.82307785]
[1742134629099,0.91520225,598.44,597.1,5.0199832]
[1742134629304,0.91520225,598.44,597.11,3.82323023]
[1742134629503,0.91520225,598.44,597.1,1.19675297]
[1742134629504,0.91520225,598.44,597.12,3.82323023]
[1742134629798,0.91520225,598.44,597.13,2.66719549]
[1742134630001,0.91520225,598.44,597.14,1.47044252]
[1742134630196,0.91520225,598.44,597.15,1.47044252]
[1742134630401,0.91520225,598.44,597.16,1.47044252]
[1742134630601,0.91520225,598.44,597.14,1.19675297]
[1742134630803,0.91520225,598.44,597.15,1.47068814]
[1742134631002,0.91520225,598.44,597.07,1.376]
[1742134631402,0.91520225,598.44,597.08,1.0610884]
[1742134631801,0.91520225,598.44,597.09,1.47061518]
[1742134632507,0.91520225,598.44,597.09,0.40808027]
[1742134632705,0.91520225,598.44,597.07,1.376]
[1742134632906,0.91520225,598.44,597.1,2.334]
[1742134636112,2.5233244,598.43,597.1,2.334]
[1742134636411,0.33421901,598.41,597.1,2.334]
[1742134639313,0.33421901,598.41,597.11,1.424]
[1742134640510,0.58,598.4,597.11,1.424]
[1742134640810,0.33423576,598.38,597.11,1.424]
[1742134645514,0.33423576,598.38,597.12,1.323]
[1742134645915,0.33423576,598.38,597.13,1.728]
[1742134659021,2.51254831,598.35,597.14,1.393]
[1742134660518,0.3342637,598.33,597.14,1.393]
[1742134662628,0.3342637,598.33,597.15,0.644]
[1742134666027,0.3342637,598.33,597.15,2.448]
[1742134670626,0.9142637,598.33,597.15,2.448]
[1742134674029,0.9142637,598.33,597.16,1.46933893]
[1742134674329,0.9142637,598.33,597.17,0.40775751]
[1742134674531,0.9142637,598.33,597.18,0.40775751]
[1742134674727,0.9142637,598.33,597.19,0.40779539]
[1742134674928,0.9142637,598.33,597.2,1.46945416]
[1742134675230,0.9142637,598.33,597.21,1.46945416]
[1742134675429,0.9142637,598.33,597.22,1.46945416]
[1742134675631,0.9142637,598.33,597.23,1.46945416]
[1742134675831,0.9142637,598.33,597.24,1.46944335]
[1742134676030,0.9142637,598.33,597.25,0.40779539]
[1742134676230,0.9142637,598.33,597.15,1.804]
[1742134676431,0.9142637,598.33,597.16,2.12187781]
[1742134676727,0.9142637,598.33,597.17,0.71527189]
[1742134676932,0.9142637,598.33,597.18,0.30751858]
[1742134677133,0.9142637,598.33,597.17,0.30751858]
[1742134677329,0.9142637,598.33,597.15,1.804]
[1742134677632,0.9142637,598.33,597.16,0.71553849]
[1742134677832,0.9142637,598.33,597.17,0.30754716]
[1742134678033,0.9142637,598.33,597.15,1.804]
[1742134678229,0.9142637,598.33,597.16,0.30754944]
[1742134679235,0.9142637,598.33,597.16,0.95154944]
[1742134679436,0.9142637,598.33,597.17,0.30754944]
[1742134679632,0.9142637,598.33,597.18,1.47108035]
[1742134679837,0.9142637,598.33,597.19,3.47900059]
[1742134680038,0.9142637,598.33,597.2,3.47900059]
[1742134680236,0.9142637,598.33,597.21,1.77860976]
[1742134680438,0.9142637,598.33,597.22,1.77860976]
[1742134680737,0.9142637,598.33,597.23,1.77857169]
[1742134681034,0.9142637,598.33,597.24,1.77857169]
[1742134681239,0.9142637,598.33,597.25,1.77857169]
[1742134681435,0.9142637,598.33,597.26,0.30751137]
[1742134681640,0.9142637,598.33,597.17,0.30751137]
[1742134681840,0.9142637,598.33,597.18,3.8247682]
[1742134682038,0.9142637,598.33,597.19,5.32947071]
[1742134682241,0.9142637,598.33,597.2,4.13228456]
[1742134682439,0.9142637,598.33,597.21,1.77855039]
[1742134682640,0.9142637,598.33,597.22,1.77855039]
[1742134682836,0.9142637,598.33,597.23,1.77855039]
[1742134683036,0.9142637,598.33,597.24,1.77855039]
[1742134683240,0.9142637,598.33,597.25,1.77855039]
[1742134683435,0.9142637,598.33,597.26,0.30751636]
[1742134683741,0.9142637,598.33,597.16,0.644]
[1742134683935,0.9142637,598.33,597.17,4.13219545]
[1742134684139,0.9142637,598.33,597.18,4.13219545]
[1742134684339,0.9142637,598.33,597.19,2.97575486]
[1742134684640,0.9142637,598.33,597.19,1.19723807]
[1742134685144,0.9142637,598.33,597.2,1.77869006]
[1742134685344,0.9142637,598.33,597.21,1.77869006]
[1742134685544,0.9142637,598.33,597.22,1.47115326]
[1742134685744,0.9142637,598.33,597.23,0.30752649]
[1742134685950,0.9142637,598.33,597.19,0.30752649]
[1742134686144,0.9142637,598.33,597.24,1.17]
[1742134690843,0.9142637,598.33,597.25,1.157]
[1742134691649,0.9142637,598.33,597.26,1.313]
[1742134695358,0.9142637,598.33,597.27,4.1317053]
[1742134695558,0.9142637,598.33,597.28,0.3074023]
[1742134695760,0.9142637,598.33,597.27,0.3074023]
[1742134696557,0.9142637,598.33,597.28,3.82351767]
[1742134696758,0.9142637,598.33,597.29,4.13091997]
[1742134696960,0.9142637,598.33,597.3,4.13091997]
[1742134697161,0.9142637,598.33,597.31,4.13091997]
[1742134697461,0.9142637,598.33,597.32,4.13091997]
[1742134697656,0.9142637,598.33,597.33,4.13091997]
[1742134697961,0.9142637,598.33,597.34,5.92691997]
[1742134698158,0.9142637,598.33,597.35,4.13091997]
[1742134698362,0.9142637,598.33,597.36,4.12575822]
[1742134698555,0.9142637,598.33,597.37,4.12575822]
[1742134698757,0.9142637,598.33,597.38,4.12575822]
[1742134698957,0.9142637,598.33,597.39,4.12575822]
[1742134699157,0.9142637,598.33,597.4,4.12575822]
[1742134699361,0.9142637,598.33,597.41,4.12575822]
[1742134699563,0.9142637,598.33,597.42,4.12575822]
[1742134699762,0.58,598.33,597.43,4.12560155]
[1742134699962,0.58,598.33,597.44,4.12560155]
[1742134700263,0.58,598.33,597.45,4.12389355]
[1742134700463,0.58,598.33,597.46,4.12389355]
[1742134700763,0.58,598.33,597.47,4.12389355]
[1742134700964,0.58,598.33,597.48,5.320661]
[1742134701164,0.58,598.33,597.49,3.81664792]
[1742134701365,0.58,598.33,597.5,3.81664792]
[1742134701665,0.58,598.33,597.51,3.31564803]
[1742134701865,0.58,598.33,597.52,1.46791096]
[1742134702065,0.58,598.33,597.53,1.46791096]
[1742134702365,0.58,598.33,597.54,1.46737486]
[1742134702565,0.58,598.33,597.55,1.4639155]
[1742134702864,0.58,598.33,597.56,0.40627027]
[1742134703064,0.58,598.33,597.57,0.40627027]
[1742134703266,0.58,598.33,597.58,0.40627027]
[1742134703563,0.58,598.33,597.59,0.40600659]
[1742134703759,0.58,598.33,597.34,1.796]
[1742134703963,0.58,598.33,597.35,4.11179484]
[1742134704163,0.58,598.33,597.36,4.11179484]
[1742134704364,0.58,598.33,597.37,4.11179484]
[1742134704665,0.58,598.33,597.38,4.11179484]
[1742134704865,0.58,598.33,597.39,5.30260473]
[1742134705065,0.58,598.33,597.4,4.11179484]
[1742134705365,0.58,598.33,597.41,4.11179484]
[1742134705665,0.58,598.33,597.42,4.11179484]
[1742134705865,0.58,598.33,597.43,4.11179484]
[1742134706065,0.58,598.33,597.44,4.11179484]
[1742134706365,0.58,598.33,597.45,4.11179484]
[1742134706566,0.58,598.33,597.46,4.11179484]
[1742134706867,0.58,598.33,597.47,4.11179484]
[1742134707065,0.58,598.33,597.48,3.80446063]
[1742134707266,0.58,598.33,597.49,4.11174973]
[1742134707567,0.58,598.33,597.5,4.11174973]
[1742134707768,0.58,598.33,597.51,5.30255962]
[1742134707968,0.58,598.33,597.52,4.11174973]
[1742134708171,0.58,598.33,597.53,4.11174973]
[1742134708469,0.58,598.33,597.54,2.4201641]
[1742134708670,0.58,598.33,597.55,2.4201641]
[1742134708869,0.58,598.33,597.56,2.112875]
[1742134709070,0.58,598.33,597.57,2.4201641]
[1742134709369,0.58,598.33,597.58,0.40598258]
[1742134709563,0.58,598.33,597.59,0.40598258]
[1742134709762,0.58,598.33,597.6,0.40598258]
[1742134709967,0.58,598.33,597.61,0.40598258]
[1742134710264,0.58,598.33,597.54,1.606]
[1742134710265,0.58,598.33,597.62,0.40598258]
[1742134710469,0.58,598.33,597.63,0.40598258]
[1742134710671,0.58,598.33,597.64,0.40507624]
[1742134710872,0.58,598.33,597.65,0.40507624]
[1742134711071,0.58,598.33,597.66,0.40507624]
[1742134711371,0.58,598.33,597.65,0.645]
[1742134711971,0.58,598.33,597.66,0.4050217]
[1742134712171,0.58,598.33,597.67,0.40505074]
[1742134712367,0.58,598.33,597.65,0.645]
[1742134712570,0.58,598.33,597.66,0.40498514]
[1742134712770,0.58,598.33,597.67,0.40498514]
[1742134712972,0.58,598.33,597.68,0.40498514]
[1742134713171,0.58,598.33,597.69,0.40498514]
[1742134713472,0.58,598.33,597.7,0.4049518]
[1742134713668,0.58,598.33,597.71,0.4049518]
[1742134713875,0.58,598.33,597.72,0.40492708]
[1742134714077,0.58,598.33,597.65,0.645]
[1742134714376,0.58,598.33,597.66,0.40496915]
[1742134714674,0.58,598.33,597.67,0.40496915]
[1742134714873,0.58,598.33,597.68,0.40496915]
[1742134715068,0.58,598.33,597.69,0.40496915]
[1742134715273,0.58,598.33,597.7,0.40496915]
[1742134715468,0.58,598.33,597.71,0.40496915]
[1742134715673,0.58,598.33,597.72,0.40496915]
[1742134715873,0.58,598.33,597.73,0.40496915]
[1742134716073,0.58,598.33,597.65,0.645]
[1742134716274,2.51254831,599.48,597.66,1.36024562]
[1742134716474,0.3336336,599.46,597.67,0.71222651]
[1742134716670,0.3336336,599.46,597.68,0.71222651]
[1742134716873,2.51254831,599.42,597.69,0.40496251]
[1742134717074,2.51254831,599.42,597.65,0.645]
[1742134717075,0.333667,599.4,597.7,0.40496251]
[1742134717275,0.333667,599.4,597.71,0.40496251]
[1742134717471,0.333667,599.4,597.72,0.40496251]
[1742134717676,0.29089936,599.39,597.73,0.40496251]
[1742134717971,0.3336837,599.37,597.74,0.40496251]
[1742134718172,0.3336837,599.37,597.75,0.40496251]
[1742134718377,0.3336837,599.37,597.65,0.645]
[1742134718578,0.3336837,599.37,597.66,2.41506355]
[1742134718877,0.3336837,599.37,597.67,2.41506355]
[1742134719076,0.3336837,599.37,597.68,2.41506355]
[1742134719273,0.3336837,599.37,597.69,2.41506355]
[1742134719479,0.3336837,599.37,597.7,2.41506355]
[1742134719779,0.3336837,599.37,597.71,2.41503601]
[1742134719975,0.3336837,599.37,597.72,2.41503601]
[1742134720179,0.578,599.36,597.73,2.41541585]
[1742134720379,0.3337004,599.34,597.74,2.41541585]
[1742134720680,0.3337004,599.34,597.75,2.41520455]
[1742134720980,0.3337004,599.34,597.76,0.71219719]
[1742134721178,0.3337004,599.34,597.77,0.71219719]
[1742134721380,2.51254831,599.25,597.78,0.71219719]
[1742134721583,0.33376166,599.23,597.79,0.71219719]
[1742134721775,0.33376166,599.23,597.8,0.71219719]
[1742134722080,0.33376166,599.23,597.81,0.40497208]
[1742134722379,0.33376166,599.23,597.65,2.005]
[1742134722579,0.33376166,599.23,597.66,2.41628443]
[1742134722780,0.33376166,599.23,597.65,2.005]
[1742134722781,0.33376166,599.23,597.67,2.41628443]
[1742134722981,0.33376166,599.23,597.68,2.41628443]
[1742134723179,0.33376166,599.23,597.69,4.10568405]
[1742134723374,0.33376166,599.23,597.7,4.9870005]
[1742134723578,0.33376166,599.23,597.71,4.10542698]
[1742134723773,0.33376166,599.23,597.72,4.10542698]
[1742134723981,0.33376166,599.23,597.73,4.10549788]
[1742134724182,0.33376166,599.23,597.74,4.10549788]
[1742134724382,0.33376166,599.23,597.75,3.79829976]
[1742134724581,0.33376166,599.23,597.76,3.79829976]
[1742134724779,0.33376166,599.23,597.77,4.10549788]
[1742134724978,0.33376166,599.23,597.78,2.41633381]
[1742134725184,0.33376166,599.23,597.79,2.41633381]
[1742134725384,0.33376166,599.23,597.8,2.41633381]
[1742134725584,0.33376166,599.23,597.81,2.41633381]
[1742134725783,0.33376166,599.23,597.82,2.41633381]
[1742134725978,0.33376166,599.23,597.83,2.41633381]
[1742134726184,0.33376166,599.23,597.84,2.41633381]
[1742134726384,0.33376166,599.23,597.85,2.41633381]
[1742134726578,0.33376166,599.23,597.86,0.71244084]
[1742134726885,0.33376166,599.23,597.66,0.71539298]
[1742134726886,0.33376166,599.23,597.87,0.71244084]
[1742134727085,0.33376166,599.23,597.88,0.71244084]
[1742134727287,0.33376166,599.23,597.89,0.71244084]
[1742134727485,0.33376166,599.23,597.9,0.71244084]
[1742134727780,0.33376166,599.23,597.91,0.71244084]
[1742134727981,0.33376166,599.23,597.92,0.30719812]
[1742134728180,0.33376166,599.23,597.66,0.30719812]
[1742134728385,0.33376166,599.23,597.67,4.10641023]
[1742134728589,0.33376166,599.23,597.68,4.10641023]
[1742134728780,0.33376166,599.23,597.69,3.79921211]
[1742134728988,0.33376166,599.23,597.7,4.10641023]
[1742134729185,0.33376166,599.23,597.71,4.10641023]
[1742134729381,0.33376166,599.23,597.72,4.10641023]
[1742134729686,0.33376166,599.23,597.73,1.36111881]
[1742134729878,0.33376166,599.23,597.74,4.10618828]
[1742134730185,0.33376166,599.23,597.75,4.10618828]
[1742134730380,0.33376166,599.23,597.76,4.44077072]
[1742134730582,0.33376166,599.23,597.77,4.10618828]
[1742134730784,0.33376166,599.23,597.78,3.79899016]
[1742134730986,0.33376166,599.23,597.76,0.33458244]
[1742134730987,0.33376166,599.23,597.79,4.1060655]
[1742134731280,0.33376166,599.23,597.8,4.1060655]
[1742134731480,0.33376166,599.23,597.81,5.29525117]
[1742134731680,0.33376166,599.23,597.82,4.1060655]
[1742134731882,0.33376166,599.23,597.83,4.1060655]
[1742134732080,0.33376166,599.23,597.84,5.29525117]
[1742134732280,0.33376166,599.23,597.85,3.79899016]
[1742134732481,0.33376166,599.23,597.86,3.79899016]
[1742134732680,0.33376166,599.23,597.87,3.79899016]
[1742134732986,0.33376166,599.23,597.88,4.10600956]
[1742134733182,0.33376166,599.23,597.89,4.10600956]
[1742134733384,0.33376166,599.23,597.9,4.10600956]
[1742134733588,0.33376166,599.23,597.91,4.10241738]
[1742134733785,0.33376166,599.23,597.92,4.10241738]
[1742134733983,0.33376166,599.23,597.93,4.10241738]
[1742134734287,0.33376166,599.23,597.94,5.29160305]
[1742134734487,0.33376166,599.23,597.95,4.10239944]
[1742134734686,0.33376166,599.23,597.96,4.10239944]
[1742134734887,0.33376166,599.23,597.97,4.10239944]
[1742134735088,0.33376166,599.23,597.98,4.10239944]
[1742134735289,0.33376166,599.23,597.99,4.10239944]
[1742134735483,0.33376166,599.23,598.0,2.73963913]
[1742134735687,0.33376166,599.23,598.01,4.10021042]
[1742134735887,0.33376166,599.23,598.02,4.10021042]
[1742134736084,0.33376166,599.23,598.03,4.10021042]
[1742134736286,0.33376166,599.23,598.04,4.10021042]
[1742134736487,0.33376166,599.23,598.05,4.10021042]
[1742134736687,0.33376166,599.23,598.06,2.41449198]
[1742134736985,0.33376166,599.23,598.07,2.41449198]
[1742134737187,0.33376166,599.23,598.08,2.41449198]
[1742134737388,0.33376166,599.23,598.09,2.41449198]
[1742134737697,0.33376166,599.23,598.1,2.41381729]
[1742134737997,0.33376166,599.23,598.11,3.29600569]
[1742134738199,0.33376166,599.23,598.12,2.10682002]
[1742134738398,0.33376166,599.23,598.13,2.10682002]
[1742134738599,0.33376166,599.23,598.14,2.10682002]
[1742134738797,0.33376166,599.23,598.15,2.10682002]
[1742134738999,0.33376166,599.23,598.16,2.10682002]
[1742134739198,0.33376166,599.23,598.17,2.10682002]
[1742134739397,0.33376166,599.23,598.18,0.40532367]
[1742134739595,0.33376166,599.23,598.19,0.40395575]
[1742134739798,0.33376166,599.23,598.15,0.645]
[1742134740000,0.33376166,599.23,598.16,0.40394167]
[1742134740202,0.33376166,599.23,598.17,0.40394167]
[1742134740404,0.33376166,599.23,598.15,0.645]
[1742134742202,0.578,599.22,598.15,0.645]
[1742134742404,0.3337728,599.21,598.16,0.40405562]
[1742134742606,0.3337728,599.21,598.17,0.40405562]
[1742134742805,0.3337728,599.21,598.18,0.40404153]
[1742134743009,0.3337728,599.21,598.15,0.645]
[1742134743212,0.3337728,599.21,598.16,0.71105729]
[1742134743408,0.3337728,599.21,598.17,3.78709832]
[1742134743616,0.3337728,599.21,598.18,3.78709832]
[1742134743911,0.3337728,599.21,598.19,3.78709832]
[1742134744211,0.3337728,599.21,598.2,3.78709832]
[1742134744412,0.3337728,599.21,598.21,2.10316255]
[1742134744608,0.3337728,599.21,598.2,1.18512032]
[1742134744811,0.3337728,599.21,598.21,2.10198848]
[1742134745007,0.3337728,599.21,598.22,2.10198848]
[1742134745211,0.3337728,599.21,598.23,2.10198848]
[1742134745514,0.3337728,599.21,598.24,2.10198848]
[1742134745814,0.3337728,599.21,598.25,3.2871088]
[1742134746012,0.3337728,599.21,598.26,2.10198848]
[1742134746215,0.3337728,599.21,598.27,2.1018135]
[1742134746414,0.3337728,599.21,598.28,2.1018135]
[1742134746614,0.3337728,599.21,598.29,3.04177207]
[1742134746814,0.3337728,599.21,598.3,4.09124769]
[1742134747014,0.3337728,599.21,598.27,1.18512032]
[1742134747015,0.3337728,599.21,598.31,4.09124769]
[1742134747313,0.3337728,599.21,598.32,4.09124769]
[1742134747514,0.3337728,599.21,598.33,4.09124769]
[1742134747714,0.3337728,599.21,598.34,4.09124769]
[1742134747914,0.3337728,599.21,598.35,4.09124769]
[1742134748115,0.3337728,599.21,598.36,4.09124769]
[1742134748417,0.3337728,599.21,598.37,5.27636801]
[1742134748615,0.3337728,599.21,598.38,4.09124769]
[1742134748813,0.3337728,599.21,598.39,4.09124769]
[1742134749010,0.3337728,599.21,598.4,4.09124769]
[1742134749216,0.578,599.22,598.41,4.09124769]
[1742134749411,0.578,599.22,598.42,2.40828358]
[1742134749613,0.578,599.22,598.43,2.40828358]
[1742134749811,0.578,599.22,598.44,2.40828358]
[1742134750009,0.578,599.22,598.45,2.40828358]
[1742134750214,0.578,599.22,598.46,0.40361416]
[1742134750413,0.578,599.22,598.47,0.40361416]
[1742134750613,0.578,599.22,598.48,0.40361416]
[1742134750816,0.578,599.22,598.49,0.40361416]
[1742134751012,0.578,599.22,598.5,0.40361416]